{"text_format":"1","workbook":"xlsx","n_sheets":7,"sheets":["VendorAndAssessmentInfo","VendorResponse","SEMinfo","Requirements","Vendor Information Sheet","Print Version","ApprovalDetails"],"not_rendered":{"charts":0,"images":2,"macros":1,"external_links":0,"defined_names":12,"comments":0,"pivot_tables":0},"unopened":[],"bounds":{"document_bytes":16777216,"sheet_cells":100000,"rows_first":2000,"rows_last":500,"rows_between":2000,"halvings":0,"cell_chars":16384,"cell_head_chars":4096},"cells_cut":0,"cells_raw":0,"read":"whole","date_system":"1900"}

{"sheet":"VendorAndAssessmentInfo","index":0,"n_rows":116,"n_cols":16,"rows_kept":116,"cut":false,"hidden":false,"merged":[[10,1,10,3],[12,1,12,3],[11,1,11,3],[13,1,13,3],[24,1,24,3],[15,0,15,4],[16,1,16,3],[18,1,18,3],[17,1,17,3],[19,1,19,3],[21,0,21,4],[22,1,22,3],[23,1,23,3],[0,0,0,4],[1,0,1,4],[2,1,2,3],[3,1,3,3],[9,0,9,4],[7,1,7,3],[29,0,29,4],[25,1,25,3],[27,0,27,4],[28,1,28,3],[36,0,36,4],[37,0,37,2],[38,0,38,2],[30,0,30,4],[48,0,48,4],[44,0,44,2],[45,0,45,4],[39,1,39,4],[40,0,40,2],[41,1,41,4],[42,0,42,4],[43,0,43,2],[46,0,46,2],[31,0,31,4],[33,1,33,3],[35,1,35,3],[65,0,65,4],[66,0,72,4],[47,3,47,4],[54,0,54,4],[55,0,56,4],[57,0,62,4],[63,0,64,3],[63,4,64,4],[51,0,51,4],[52,0,52,3],[53,0,53,4],[47,0,47,2],[50,0,50,4],[49,0,49,2]]}
["Please provide this information about your organization and contact information"]
["Vendor Information"]
["Name:"]
["Web Address:"]
[]
["Do you have other assessments on the list?"]
[]
["If yes, please list the name(s) of those assessment(s):"]
[]
["Authorized Contact Information"]
["Name:"]
["Title:"]
["Email:"]
["Phone:"]
[]
["Proposal Manager Contact"]
["Name:"]
["Title:"]
["Email:"]
["Phone:"]
[]
["Customer Service Contact"]
["Name:"]
["Title:"]
["Email:"]
["Phone:"]
[]
["Please provide this information about your assessment"]
["Assessment Name:"]
["Provide a brief description (2-3 sentences) about the intended purpose of your assessment:"]
[]
["Application Information"]
["Is this assessment on the current list or has it been on a previous list?"]
[]
["If this is assessment is currently or has previously been on the list, for which category(s) was it already approved?"]
[]
["Assessment Timing"]
["How often is this assessment meant to be given?"]
["Does this assessment have specific testing windows?"]
["If yes, when?"]
["If yes, are there separate norms for each test window?"]
["If no, please explain."]
["Assessment Mode and Scoring "]
["Please choose the administration mode that best describes this assessment other than accommodations. "]
["Does this assessment require the use of any technology or technical equipment other than a pencil or timer?"]
["For assessments that require technology or technical equipment other than a pencil or timer, please be sure to provide this information in submission per requirement 3.7."]
["Please choose the scoring method that best describes how this assessment is scored:"]
["For computer and vendor scoring: what is the expected turn-around time for scoring?"]
["For certain assessment categories scoring turn-around time or score availablity dates are required. Please provide that information in your submission information as a response for requirement 3.6."]
["Is training/support available for locally scored assessments?"]
["Vendors should provide information about qualifications of scorers and available training or support for locally scored assessments in their submission materals as a response to requirement 3.8."]
["Student Security and PII"]
["Will any student personally identifable information (PII) be collected or required  by the vendor?"]
["If yes, please be sure to provide the evidence of safeguards in requirement 1.6"]
["Accommodations for Diverse Learners"]
["Please briefly list any accessibility features or accommodations available. Please include a more detailed description in your submission information per requirement 2.1"]
[]
[]
[]
[]
[]
[]
[]
["Is this assessment available in languages other than English or does it have available language translations?",null,null,null,"yes"]
[]
["If yes, please list the languages available:"]
[]
[]
[]
[]
[]
[]
[]
[]
[]
[]
[]
[]
[]
[]
[]
[]
[]
[]
[]
[]
[]
[]
[]
[]
[]
[]
[]
[]
[]
[]
[]
[]
[]
[]
[]
[]
[]
[]
[]
[]
[]
[]
[]
[]
[]
[null,null,null,null,null,null,null,null,null,null,null,null,null,null,null,"No, this is the first time we've applied to have this assessment added to the list. "]
[null,null,null,null,null,null,null,null,null,null,null,null,null,null,null,"No, we've applied with this assessment before but it was not approved. "]
[null,null,null,null,null,null,null,null,null,null,null,null,null,null,null,"Yes, we're applying for five-year review for an assessment already on the list. "]
[null,null,null,null,null,null,null,null,null,null,null,null,null,null,null,"Yes, we're applying for an additional approval category for an assessment that is already on the list. "]
[null,null,null,null,null,null,null,null,null,null,null,null,null,null,null,"Yes, this assessment was previously approved on the list, but is not on the current list. "]

{"sheet":"VendorResponse","index":1,"n_rows":100,"n_cols":21,"rows_kept":100,"cut":false,"hidden":false,"merged":[[9,8,9,11],[9,12,9,15],[9,6,9,7],[2,2,2,5],[3,2,3,5],[9,2,9,5]]}
["Vendor Submission Tool: Vendor Assessments for 2026-2027"]
["Vendors are to respond to all pertinent green boxes below. One tool is required for each discrete assessment. Please retain form as an active xlsm document and also submit as a pdf."]
[null,"Enter Vendor Name Here:"]
[null,"Enter Assessment Name/Description:"]
[null,null,"Application 1","Application 2","Application 3","Application 4"]
[null,"Select Up to 4 Purposes for your Assessment Submission: (Use a second workbook if more than four purposes are proposed for the same assessment.):","None","None","None","None"]
[null,"Grade Level or Age Range:"]
[null,"Content Area(s) or Subject Area(s) Alignment:"]
[null,"Application Sufficient:",{"$f":"IF(SUM(R12:R100)>0,\"Issue Reported\",\"No Issue Noted\")","v":"No Issue Noted"},{"$f":"IF(SUM(S12:S100)>0,\"Issue Reported\",\"No Issue Noted\")","v":"No Issue Noted"},{"$f":"IF(SUM(T12:T100)>0,\"Issue Reported\",\"No Issue Noted\")","v":"No Issue Noted"},{"$f":"IF(SUM(U12:U100)>0,\"Issue Reported\",\"No Issue Noted\")","v":"No Issue Noted"}]
[null,null,"Submission Requirements by Purpose",null,null,null,"Vendor Documentation",null,"1st ODE Evaluation",null,null,null,"2nd ODE Evaluation"]
["Element","Requirement",{"$f":"C6","v":"None"},{"$f":"D6","v":"None"},{"$f":"E6","v":"None"},{"$f":"F6","v":"None"},"Document File Name and Location ","Page Number of Information ","First Score Adequate","Provided Documentation","Notes","Reader Names","Second Score Adequate?","Provided Documentation","Re-Read Notes","Re-Reader Names","Insufficient Indicator","Application 1","Application 2","Application 3","Application 4"]
[1,"VENDOR CAPABILITY: Readers will evaluate general capacity of vendor to meet assessment needs of Ohio districts.",{"$f":"_xlfn.CONCAT(C13,C14,C15,C18)","v":""},{"$f":"_xlfn.CONCAT(D13,D14,D15,D18)","v":""},"",""]
[1.1000000000000001,"The vendor describes sufficient services to reasonably support needs of LEAs (training and professional development as needed to administer assessment and interpret results, ongoing communication and support available during test administration).",null,null,{"$f":"IF(INDEX(Requirements,MATCH($A13,Elements,0),MATCH(E$11,Categories,0))=0,\"\",(INDEX(Requirements,MATCH($A13,Elements,0),MATCH(E$11,Categories,0))))","v":""},"",null,null,null,null,null,null,null,null,null,null,{"$f":"IF(M13=\"Y\",0,IF(I13=\"N\",1,0))","v":0},{"$f":"IF(C13=\"Required\",1*$Q13,0)","v":0},{"$f":"IF(D13=\"Required\",1*$Q13,0)","v":0},{"$f":"IF(E13=\"Required\",1*$Q13,0)","v":0},{"$f":"IF(F13=\"Required\",1*$Q13,0)","v":0}]
[1.2,"Requirement Eliminated","","","","",null,null,null,null,null,null,null,null,null,null,0,0,0,0,0]
[1.3,"Requirement Eliminated","","","","",null,null,null,null,null,null,null,null,null,null,0,0,0,0,0]
[1.4,"Requirement Eliminated","","","","",null,null,null,null,null,null,null,null,null,null,0,0,0,0,0]
["1.5","Requirement Eliminated","","","","",null,null,null,null,null,null,null,null,null,null,0,0,0,0,0]
["1.6","The vendor provides evidence of strict safeguards to protect the confidentiality of personally identifiable student data, as required by ORC 3301.0714 and FERPA OR vendor has no access to presonally identifiable student information. ","","","","",null,null,null,null,null,null,null,null,null,null,0,0,0,0,0]
[2,"VENDOR EFFECTIVENESS: Readers will evaluate vendor capacity to respond to school/district needs and support them in use of the assessment.",{"$f":"_xlfn.CONCAT(C20,C21)","v":""},"","","",null,null,null,null,null,null,null,null,null,null,0,0,0,0,0]
[2.1,"The vendor describes any accessibility features or accommodations included and support for their use to meet the unique needs of students having disabilities or language barriers.","","","","",null,null,null,null,null,null,null,null,null,null,0,0,0,0,0]
[2.2000000000000002,"Requirement Eliminated","","","","",null,null,null,null,null,null,null,null,null,null,0,0,0,0,0]
[3,"ADMINISTRATION, SCORING, AND REPORTING: Readers will consider both general indicators of adequacy and specific scoring and reporting needs for individual assessment uses.",{"$f":"_xlfn.CONCAT(C23:C30)","v":""},{"$f":"_xlfn.CONCAT(D23:D30)","v":""},"","",null,null,null,null,null,null,null,null,null,null,0,0,0,0,0]
[3.1,"The vendor adequately describes the assessment administration protocol. The vendor's administration protocol must allow a test administrator unfamiliar with the particular assessment to be able to understand and administer the assessment in an appropriate and standardized manner.","","","","",null,null,null,null,null,null,null,null,null,null,0,0,0,0,0]
[3.2,"The vendor provides a description of administrator training needs and adequately describes how any necessary administrator training will be provided.","","","","",null,null,null,null,null,null,null,null,null,null,0,0,0,0,0]
[3.3,"The vendor provides information regarding the point during the instructional year at which the assessment should be administered (e.g., a certain percentage of the way through the year or after specific concepts are covered) AND this aligns with needs/expectations for the specific approval being sought.","","","","",null,null,null,null,null,null,null,null,null,null,0,0,0,0,0]
[3.4,"The vendor provides adequate information regarding the time allowed for a student to complete the assessment. If not timed, the expected time needed to complete by subgroups of students is provided.","","","","",null,null,null,null,null,null,null,null,null,null,0,0,0,0,0]
[3.5,"The vendor provides details regarding student groups (grade or age, disabilities, English learners, etc.) for whom the assessment is appropriate. ","","","","",null,null,null,null,null,null,null,null,null,null,0,0,0,0,0]
[3.6,"The vendor documents its commitment to timely scoring and reporting to meet specific deadlines for any approved uses OR attests that all scoring and reporting are to be carried out by school or district personnel. (Immediate scoring meets the requirements for this element.) ","","","","",null,null,null,null,null,null,null,null,null,null,0,0,0,0,0]
[3.7,"The vendor adequately describes any technology requirements associated with each proposed assessment OR attests that there are NO technical requirements. ","","","","",null,null,null,null,null,null,null,null,null,null,0,0,0,0,0]
["3.8","The vendor provides recommendations on who should score the assessment as appropriate and relevant (e. g., vendor scored, locally scored, qualifications and/or training of scorers).","","","","",null,null,null,null,null,null,null,null,null,null,0,0,0,0,0]
[3.9,"The vendor provides evidence of adequate security measures that address assessment security, threat assessment and/or test/item exposure. This shall include the following:",{"$f":"_xlfn.CONCAT(C32,C33,C34,C35)","v":""},{"$f":"_xlfn.CONCAT(D32,D33,D34,D35)","v":""},"","",null,null,null,null,null,null,null,null,null,null,0,0,0,0,0]
["3.9.a","The vendor has provided evidence that resulting scores are equivalent across forms or computer-produced test versions, per the Testing Standards. ",{"$f":"IF(INDEX(Requirements,MATCH($A32,Elements,0),MATCH(C$11,Categories,0))=0,\"\",(INDEX(Requirements,MATCH($A32,Elements,0),MATCH(C$11,Categories,0))))","v":""},"","","",null,null,null,null,null,null,null,null,null,null,0,0,0,0,0]
["3.9.b","The vendor demonstrates the integrity of tests and test items is supported through practices as appropriate to the instrument and its purposes, e.g., multiple paper forms where multiple administrations are indicated; security measures to prevent inappropriate access to forms/items; sufficient item bank minimizes exposure of items for computer-adaptive testing.","","","","",null,null,null,null,null,null,null,null,null,null,0,0,0,0,0]
["3.10","Requirement Eliminated","","","","",null,null,null,null,null,null,null,null,null,null,0,0,0,0,0]
[3.11,"Requirement Eliminated","","","",""]
[3.12,"The vendor shows how scoring processes and inferences match specific assessment needs with respect to the following requirements:",{"$f":"_xlfn.CONCAT(C37:C51)","v":""},{"$f":"_xlfn.CONCAT(D37:D51)","v":""},"","",null,null,null,null,null,null,null,null,null,null,{"$f":"IF(M36=\"Y\",0,IF(I36=\"N\",1,0))","v":0},{"$f":"IF(C36=\"Required\",1*$Q36,0)","v":0},0,0,0]
["3.12.a","Requirement Eliminated","","","","",null,null,null,null,null,null,null,null,null,null,0,0,0,0,0]
["3.12.b","Requirement Eliminated","","","","",null,null,null,null,null,null,null,null,null,null,0,0,0,0,0]
["3.12.c","Requirement Eliminated","","","","",null,null,null,null,null,null,null,null,null,null,0,0,0,0,0]
["3.12.d","Requirement Eliminated","","","","",null,null,null,null,null,null,null,null,null,null,0,0,0,0,0]
["3.12.e","Requirement Eliminated","","","","",null,null,null,null,null,null,null,null,null,null,0,0,0,0,0]
["3.12.f","Requirement Eliminated","","","",""]
["3.12.g","Requirement Eliminated","","","",""]
["3.12.h","Requirement Eliminated","","","",""]
["3.12.i","Requirement Eliminated",{"$f":"IF(INDEX(Requirements,MATCH($A45,Elements,0),MATCH(C$11,Categories,0))=0,\"\",(INDEX(Requirements,MATCH($A45,Elements,0),MATCH(C$11,Categories,0))))","v":""},"","","",null,null,null,null,null,null,null,null,null,null,{"$f":"IF(M45=\"Y\",0,IF(I45=\"N\",1,0))","v":0},{"$f":"IF(C45=\"Required\",1*$Q45,0)","v":0},{"$f":"IF(D45=\"Required\",1*$Q45,0)","v":0},{"$f":"IF(E45=\"Required\",1*$Q45,0)","v":0},{"$f":"IF(F45=\"Required\",1*$Q45,0)","v":0}]
["3.12.j","Requirement Eliminated","","","","",null,null,null,null,null,null,null,null,null,null,0,0,0,0,0]
["3.12.k","Vendor has provided the standard deviation, the mean, and the standard error of measure. Please enter SEM info in SEMinfo sheet. ","","","","",null,null,null,null,null,null,null,null,null,null,0,0,0,0,0]
["3.12.l","Reporting must allow districts to determine if a student meets or exceeds the 95th percentile or obtains an approved above grade level score.","","","","",null,null,null,null,null,null,null,null,null,null,0,0,0,0,0]
["3.12.m","Reporting must allow districts to determine if a student demonstrates a sufficient score as specified by the Department indicative of gifted ability in creative thinking.","","","","",null,null,null,null,null,null,null,null,null,null,0,0,0,0,0]
["3.12.n","Results in determination by a trained individual that student behaviors are indicative (or not) of creative or artistic giftedness. ","","","","",null,null,null,null,null,null,null,null,null,null,0,0,0,0,0]
["3.12.o","Requirement Eliminated","","","","",null,null,null,null,null,null,null,null,null,null,0,0,0,0,0]
[4,"BLUEPRINTS AND ALIGNMENT: Tests of student knowledge have a variety of alignment requirements. Readers will look for evidence of appropriate alignment to Ohio Learning Standards or other defined bodies of knowledge as appropriate to the specific use.",{"$f":"_xlfn.CONCAT(C53:C67)","v":""},{"$f":"_xlfn.CONCAT(D53:D67)","v":""},"","",null,null,null,null,null,null,null,null,null,null,0,0,0,0,0]
[4.0999999999999996,"The vendor provides a blueprint, item selection method, or meaningful description of test/form delivery or construction adequately describing the item distribution by content and item type, complexity, number of items, scoring of items, and any tools required/allowed for use by students during test administration. ","","","","",null,null,null,null,null,null,null,null,null,null,0,0,0,0,0]
[4.2,"The vendor provides a description of the range and depth of knowledge (e.g., state or national standards, curricular framework) to which alignment is referenced. See Depth of Knowledge defined in secion 1.5 of the RFQ document. ","","","","",null,null,null,null,null,null,null,null,null,null,0,0,0,0,0]
["4.2.a","The instrument includes a sufficient depth and/or range of knowledge to determine advanced levels of achievement  or achievement beyond grade level. ","","","",""]
[4.3,"The vendor provides evidence of an alignment study that meets industry-standards and/or is completed by a qualified and independent third party.","","","","",null,null,null,null,null,null,null,null,null,null,0,0,0,0,0]
[4.4000000000000004,"The alignment study provided describes a rigorous methodology for determining alignment.","","","","",null,null,null,null,null,null,null,null,null,null,0,0,0,0,0]
[4.5,"The vendor demonstrates that the assessment alignment meets the requirements of the approval being sought as to content and grade level as below:","","","","",null,null,null,null,null,null,null,null,null,null,0,0,0,0,0]
["4.5.a","Requirement Eliminated","","","","",null,null,null,null,null,null,null,null,null,null,0,0,0,0,0]
["4.5.b","Blueprint, item selection method, or other meaningful descsription demonstrates that content aligns with existing Ohio tests.","","","","",null,null,null,null,null,null,null,null,null,null,0,0,0,0,0]
["4.5.c","Blueprint, item selection method, or other meaningful description demonstrates that content aligns with Ohio Learning Standards or other nationally recognized content standards. ","","","","",null,null,null,null,null,null,null,null,null,null,0,0,0,0,0]
["4.5.d","Blueprint, item selection method, or other meaningful description demonstrates that content aligns with applicable Ohio Learning Standards.  A minimum alignment of 50% is required for the Alt 3-8 ELA and Alt 3-8 Math assessments. A minimum alignment of 80% is required for the Alt 3-8 Science assessments with inclusion of all domains.\nNote: Alt. 3-8 Science may align to NGSS","","","","",null,null,null,null,null,null,null,null,null,null,0,0,0,0,0]
["4.5.e","Based on the blueprint, item selection method, or other meanignful description, assessment shows similar cognitive measures as the Ohio State Tests.","","","","",null,null,null,null,null,null,null,null,null,null,0,0,0,0,0]
["4.5.f","Blueprint, item selection method, or other meaningful description contains a detailed description of standards assessed, including entire domain.","","","","",null,null,null,null,null,null,null,null,null,null,0,0,0,0,0]
["4.5.g","Requirement Eliminated","","","","",null,null,null,null,null,null,null,null,null,null,0,0,0,0,0]
["4.5.h","Requirement Eliminated","","","","",null,null,null,null,null,null,null,null,null,null,0,0,0,0,0]
["4.5.i","Requirement Eliminated",{"$f":"IF(INDEX(Requirements,MATCH($A67,Elements,0),MATCH(C$11,Categories,0))=0,\"\",(INDEX(Requirements,MATCH($A67,Elements,0),MATCH(C$11,Categories,0))))","v":""},"","",""]
[5,"LINKING: Readers will look for evidence that the score (or level such as proficiency, etc.) on an assessment is equivalent to the scores of the Ohio assessment for which it may substitute.","","","","",null,null,null,null,null,null,null,null,null,null,{"$f":"IF(M68=\"Y\",0,IF(I68=\"N\",1,0))","v":0},{"$f":"IF(C68=\"Required\",1*$Q68,0)","v":0},{"$f":"IF(D68=\"Required\",1*$Q68,0)","v":0},{"$f":"IF(E68=\"Required\",1*$Q68,0)","v":0},{"$f":"IF(F68=\"Required\",1*$Q68,0)","v":0}]
[5.0999999999999996,"The vendor provides a linking study that meets industry standards and/or has been conducted by an independent third party. \nNote: Alt Reading and Alt 3-8 ELA at grade 3 MUST meet this requirement using a linking study from an independent third party. An internal study reviewed by an independent third party MAY NOT be used. ","","","","",null,null,null,null,null,null,null,null,null,null,0,0,0,0,0]
[5.2,"The vendor provides sufficient information (e.g., curriculum vitae of key personnel) to establish the expert's and/or third-party's qualifications to conduct linking studies.","","","","",null,null,null,null,null,null,null,null,null,null,0,0,0,0,0]
[5.3,"The vendor provides evidence as appropriate (i.e., a signed statement) that the third-party organization is independent of the vendor.","","","","",null,null,null,null,null,null,null,null,null,null,0,0,0,0,0]
[5.4,"The linking study demonstrates scoring equivalence between proposed assessment and existing Ohio tests.","","","","",null,null,null,null,null,null,null,null,null,null,0,0,0,0,0]
[5.5,"Provision of tables showing concordance between the vendor’s scale scores and Ohio’s scale scores at the defined points for Limited, Basic, Proficient, Accomplished, Advanced performance levels, and Competency where required.  A complete point to point concordance table of entire scale scores is preferred.","","","","",null,null,null,null,null,null,null,null,null,null,0,0,0,0,0]
[5.6,"The linking study includes a concordance table covering the entire range (16-86) of the reading subscore of the Ohio Grade 3 ELA test.","","","","",null,null,null,null,null,null,null,null,null,null,0,0,0,0,0]
[5.7,"The vendor provides evidence that the sample used in the linking study consists of a minimum of five Ohio school districts representing at least three typologies. See Typology of Ohio School Districts defined in section 1.5 of the RFQ document.","","","","",null,null,null,null,null,null,null,null,null,null,0,0,0,0,0]
[5.8,"The vendor provides the following information about sample used for linking: the number and size (number of students) of districts and schools in the sample and the names or typology of the districts. Typology of Ohio School Districts","","","","",null,null,null,null,null,null,null,null,null,null,0,0,0,0,0]
["5.9","The linking study demonstrates a robust and representative sampling of students by gender, ethnicity, and economic disadvantage.","","","","",null,null,null,null,null,null,null,null,null,null,0,0,0,0,0]
["5.10","Demographic data provided establishes that the sample used for linking fairly represents the composition of the student population of the state of Ohio as relates to school/district typology and demographic variables as outlined in 5.8 and 5.9.","","","","",null,null,null,null,null,null,null,null,null,null,0,0,0,0,0]
["5.11","The linking study contains comparative scores for students taking both the proposed alternative test and the Ohio grade 3 ELA test within 60 calendar days.","","","","",null,null,null,null,null,null,null,null,null,null,0,0,0,0,0]
[6,"VALIDITY: Validity refers to the ability of the assessment to measure what it is intended to measure, relatively free from the impact of other influences.","","","","",null,null,null,null,null,null,null,null,null,null,0,0,0,0,0]
[6.1,"The technical report or manual (or equivalent third-party documentation) provides validity evidence based on credible methodology to support inferences about student performance, including, but not limited to, evidence of content and construct validity as appropriate to the test and each specific proposed purpose.","","","","",null,null,null,null,null,null,null,null,null,null,0,0,0,0,0]
[6.2,"The technical report or manual (or equivalent third-party documentation) provides validity evidence based on credible methodology to support inferences about student performance, including, but not limited to, concurrent or predictive validity as appropriate to the test and each specific proposed purpose, with a recommended interval of at least two months for predictive validity. Concurrent validity requires a minimum coefficient of 0.70; predictive validity requires a minimum coefficient of 0.50.","","","","",null,null,null,null,null,null,null,null,null,null,0,0,0,0,0]
[6.3,"Requirement Eliminated","","","","",null,null,null,null,null,null,null,null,null,null,0,0,0,0,0]
[6.4,"Requirement Eliminated","","","","",null,null,null,null,null,null,null,null,null,null,0,0,0,0,0]
["6.5","Requirement Eliminated","","","",""]
["6.6","Requirement Eliminated","","","",""]
[7,"NORMING: Norming provides a basis for percentile scoring as well as demonstrating the performance of the instrument across a nationally representative group of students.","","","","",null,null,null,null,null,null,null,null,null,null,{"$f":"IF(M87=\"Y\",0,IF(I87=\"N\",1,0))","v":0},{"$f":"IF(C87=\"Required\",1*$Q87,0)","v":0},0,0,0]
[7.1,"Norming data are less than 10 years old.","","","","",null,null,null,null,null,null,null,null,null,null,null,0,0,0,0]
[7.2,"Norming sample adequately represents the student population of the nation. Vendor demonstrates representation by demographics including gender and income level (free/reduced price lunch eligibility or other proxy) at a minimum. ","","","","",null,null,null,null,null,null,null,null,null,null,{"$f":"IF(M89=\"Y\",0,IF(I89=\"N\",1,0))","v":0},0,0,0,0]
[7.3,"Sample is comprised of students from all regions of the nation without any states or regions disproportionately represented.","","","","",null,null,null,null,null,null,null,null,null,null,{"$f":"IF(M90=\"Y\",0,IF(I90=\"N\",1,0))","v":0},0,0,0,0]
[7.4,"The sample size is sufficiently large to produce stable norming results: more than 5,000 on average per grade/subject with no grade/subject less than 1,000, subect to good representation of student population nationally, per test for general achievement tests. Tests specifically designed for small, discrete populations (example: nonverbal students) may be judged on the sufficiency of a smaller appropriate sample. ","","","","",null,null,null,null,null,null,null,null,null,null,{"$f":"IF(M91=\"Y\",0,IF(I91=\"N\",1,0))","v":0},0,0,0,0]
[7.5,"Data of the norming study should be from a limited timeframe so the results are considered comparable. A separate norm is necessary for each administration (such as fall, winter, spring, if applicable). ","","","","",null,null,null,null,null,null,null,null,null,null,{"$f":"IF(M92=\"Y\",0,IF(I92=\"N\",1,0))","v":0},0,0,0,0]
["7.6","Vendor provides evidence of a reporting scale that has been standardized using commonly accepted methodology","","","",""]
[8,"RELIABILITY: Reliability is a measure of the capacity of an assessment to arrive at similar results given similar conditions. Excellent evidence requires that reliability is met in 100% of all measures according to generally accepted professional standards. Adequate evidence, in which the requirement is substantially met (example: reliability demonstrated for a preponderance of grade/content combinations, or deficits at some grades falling within the margin of error) will be considered on a case-by-case basis. NOTE: As stated in Section 1.5 (Reservation of Rights), the Department reserves the right to \"grant full or limited approval of assessments (e.g., approving some but not all uses and/or some but not all grade levels or content areas).\"","","","","",null,null,null,null,null,null,null,null,null,null,{"$f":"IF(M94=\"Y\",0,IF(I94=\"N\",1,0))","v":0},{"$f":"IF(C94=\"Required\",1*$Q94,0)","v":0},{"$f":"IF(D94=\"Required\",1*$Q94,0)","v":0},{"$f":"IF(E94=\"Required\",1*$Q94,0)","v":0},{"$f":"IF(F94=\"Required\",1*$Q94,0)","v":0}]
[8.1,"The technical report or manual (or equivalent third-party documentation) provides credible estimates of reliability at least at the .80 level for individual grade levels, or .90 when calculated across a range of grade levels.","","","","",null,null,null,null,null,null,null,null,null,null,0]
[8.1999999999999993,"The technical report or manual (or equivalent third-party documentation) provides credible estimates of reliability at least at the .90 level. (Gifted assessments falling below .90 but above .80 may be approved for pre-screening only.)","","","","",null,null,null,null,null,null,null,null,null,null,{"$f":"IF(M96=\"Y\",0,IF(I96=\"N\",1,0))","v":0},{"$f":"IF(C96=\"Required\",1*$Q96,0)","v":0},0,0,0]
[8.3000000000000007,"The technical report or manual includes sound and credible reliability evidence to support multiple administrations (three or more within a school year) if applicable (test-retest reliability coefficient of .85). This does not apply to instruments once annually or others for which there is no on-demand usage. ","","","","",null,null,null,null,null,null,null,null,null,null,0,0,0,0,0]
[8.4,"The technical or manual report (or equivalent third-party documentation) provides evidence of sound methodology to determine that the assessment has items of varied difficulty that cover the expected ability distribution for the examinees of interest (e.g., sufficient item coverage at the tails of the distribution).","","","","",null,null,null,null,null,null,null,null,null,null,0,0,0,0,0]
[8.5,"The technical report or manual (or equivalent third-party documentation) includes estimates of standard error of measurement overall and/or at the cut score with a sufficient and credible explanation of methodology.","","","","",null,null,null,null,null,null,null,null,null,null,0,0,0,0,0]
[8.6,"The technical report or manual (or equivalent third-party documentation) provides sound and credible evidence that the assessment does not exhibit bias toward any major subgroups (e.g., through an analysis of differential item functioning and/or description of fairness and sensitivity review during development.","","","","",null,null,null,null,null,null,null,null,null,null,0,0,0,0,0]

{"sheet":"SEMinfo","index":2,"n_rows":22,"n_cols":5,"rows_kept":22,"cut":false,"hidden":false,"merged":[[1,1,8,4],[18,1,20,4]]}
[]
[null,"Gifted Intelligence Tests – Additional Information Collection Tool \nIn Ohio, school districts are required to calculate qualifying scores for gifted identification using the mean, standard deviation, and standard error of measurement for approved intelligence or cognitive abilities test.\n\nTherefore, when submitting these types of assessments as part of the Department's List of Approved Assessments RFQ, test publishers are required to provide the mean, standard deviation, and standard error of measurement for any composite, battery, of index submitted for review.  The chart below provides an example of the required information.  "]
[]
[]
[]
[]
[]
[]
[]
[null,"Example:"]
[null,"Assessment Name ","Mean ","Standard Deviation ","Standard Error of Measurement  "]
[null,"Example Assessment 1, Complete Battery ","100 ","15 ","3.2 "]
[null,"Example Assessment 1, Basic Battery ","100 ","15 ","4.7 "]
[null,"Example Assessment 2, Full Scale Index ","100 ","16 ","3.8 "]
[null,"Example Assessment 2, Reasoning Index ","100 ","16 ","4.4 "]
[null,"Example Assessment 3, Nonverbal Composite ","100 ","15 ","5.1 "]
[]
[]
[null,"DIRECTIONS: Please complete the following chart for each assessment submitted for review, including any submitted composite, battery, or index. Include one row for each assessment, composite, battery, or index submitted. "]
[]
[]
[null,"Assessment Name ","Mean ","Standard Deviation ","Standard Error of Measurement  "]

{"sheet":"Requirements","index":3,"n_rows":89,"n_cols":12,"rows_kept":89,"cut":false,"hidden":true,"merged":[]}
[null,"Alternative 3-8 Science","Alternative 3-8 ELA","Alternative 3-8 Math","Alternative High School","High Quality Student Data (HQSD)","Gifted: Test of Specific Academic Ability ","Gifted:  Test of Intelligence","Gifted:  Test of Creative Ability ","Gifted:  Checklist of Artistic Ability ","Gifted:  Checklist of Creative Behaviors","None"]
[1.1000000000000001,"Required","Required","Required","Required","Required","Required","Required","Required","Required","Required",0]
[1.2,0,0,0,0,0,0,0,0,0,0,0]
[1.3,0,0,0,0,0,0,0,0,0,0,0]
[1.4,0,0,0,0,0,0,0,0,0,0,0]
["1.5",0,0,0,0,0,0,0,0,0,0,0]
["1.6","Required","Required","Required","Required","Required","Required","Required","Required","Required","Required",0]
[2,0,0,0,0,0,0,0,0,0,0,0]
[2.1,"Required","Required","Required","Required","Required","Required","Required","Required",0,0,0]
[2.2000000000000002,0,0,0,0,0,0,0,0,0,0,0]
[3,0,0,0,0,0,0,0,0,0,0,0]
[3.1,"Required","Required","Required","Required","Required","Required","Required","Required","Required","Required",0]
[3.2,"Required","Required","Required","Required","Required","Required","Required","Required","Required","Required",0]
[3.3,"Required","Required","Required","Required","Required","Required","Required","Required","Required","Required",0]
[3.4,"Required","Required","Required","Required","Required","Required","Required","Required","Required","Required",0]
[3.5,"Required","Required","Required","Required","Required","Required","Required","Required","Required","Required",0]
[3.6,"Required","Required","Required","Required","Required","Required","Required","Required","Required","Required",0]
[3.7,"Required","Required","Required","Required","Required","Required","Required","Required","Required","Required",0]
["3.8","Required","Required","Required","Required","Required","Required","Required","Required","Required","Required",0]
[3.9,0,0,0,0,0,0,0,0,0,0,0]
["3.9.a","Required","Required","Required","Required","Required","Required","Required","Required",0,0,0]
["3.9.b","Required","Required","Required","Required","Required","Required","Required","Required",0,0,0]
["3.10",0,0,0,0,0,0,0,0,0,0,0]
[3.11,0,0,0,0,0,0,0,0,0,0,0]
[3.12,0,0,0,0,0,0,0,0,0,0,0]
["3.12.a",0,0,0,0,0,0,0,0,0,0,0]
["3.12.b",0,0,0,0,0,0,0,0,0,0,0]
["3.12.c",0,0,0,0,0,0,0,0,0,0,0]
["3.12.d",0,0,0,0,0,0,0,0,0,0,0]
["3.12.e",0,0,0,0,0,0,0,0,0,0,0]
["3.12.f",0,0,0,0,0,0,0,0,0,0,0]
["3.12.g",0,0,0,0,0,0,0,0,0,0,0]
["3.12.h",0,0,0,0,0,0,0,0,0,0,0]
["3.12.i",0,0,0,0,0,0,0,0,0,0,0]
["3.12.j",0,0,0,0,0,0,0,0,0,0,0]
["3.12.k",0,0,0,0,0,0,"Required",0,0,0,0]
["3.12.l",0,0,0,0,0,"Required",0,0,0,0,0]
["3.12.m",0,0,0,0,0,0,0,"Required",0,0,0]
["3.12.n",0,0,0,0,0,0,0,0,"Required","Required",0]
["3.12.o",0,0,0,0,0,0,0,0,0,0,0]
[4,0,0,0,0,0,0,0,0,0,0,0]
[4.0999999999999996,"Required","Required","Required","Required","Required","Required",0,0,0,0,0]
[4.2,"Required","Required","Required","Required","Required","Required",0,0,0,0,0]
["4.2.a",0,0,0,0,0,"Required",0,0,0,0,0]
[4.3,"Required","Required","Required","Required","Required",0,0,0,0,0,0]
[4.4000000000000004,"Required","Required","Required","Required","Required",0,0,0,0,0,0]
[4.5,0,0,0,0,0,0,0,0,0,0,0]
["4.5.a",0,0,0,0,0,0,0,0,0,0,0]
["4.5.b","Required","Required","Required",0,0,0,0,0,0,0,0]
["4.5.c",0,0,0,"Required","Required",0,0,0,0,0,0]
["4.5.d","Required","Required","Required",0,0,0,0,0,0,0,0]
["4.5.e","Required","Required","Required",0,0,0,0,0,0,0,0]
["4.5.f","Required","Required","Required",0,0,0,0,0,0,0,0]
["4.5.g",0,0,0,0,0,0,0,0,0,0,0]
["4.5.h",0,0,0,0,0,0,0,0,0,0,0]
["4.5.i",0,0,0,0,0,0,0,0,0,0,0]
[5,0,0,0,0,0,0,0,0,0,0,0]
[5.0999999999999996,"Required","Required","Required","Required",0,0,0,0,0,0,0]
[5.2,"Required","Required","Required","Required",0,0,0,0,0,0,0]
[5.3,"Required","Required","Required","Required",0,0,0,0,0,0,0]
[5.4,"Required","Required","Required","Required",0,0,0,0,0,0,0]
[5.5,"Required","Required","Required","Required",0,0,0,0,0,0,0]
[5.6,0,"Required",0,0,0,0,0,0,0,0,0]
[5.7,"Required","Required","Required",0,0,0,0,0,0,0,0]
[5.8,"Required","Required","Required",0,0,0,0,0,0,0,0]
["5.9","Required","Required","Required",0,0,0,0,0,0,0,0]
["5.10","Required","Required","Required",0,0,0,0,0,0,0,0]
["5.11",0,"Required",0,0,0,0,0,0,0,0,0]
[6,0,0,0,0,0,0,0,0,0,0,0]
[6.1,"Required","Required","Required","Required","Required","Required","Required","Required","Required","Required",0]
[6.2,"Required","Required","Required","Required","Required","Required","Required",0,0,0,0]
[6.3,0,0,0,0,0,0,0,0,0,0,0]
[6.4,0,0,0,0,0,0,0,0,0,0,0]
["6.5",0,0,0,0,0,0,0,0,0,0,0]
["6.6",0,0,0,0,0,0,0,0,0,0,0]
[7,0,0,0,0,0,0,0,0,0,0,0]
[7.1,0,0,0,"Required",0,0,0,0,0,0,0]
[7.2,0,0,0,"Required",0,"Required","Required",0,"Required","Required",0]
[7.3,0,0,0,"Required",0,"Required","Required",0,"Required","Required",0]
[7.4,0,0,0,"Required",0,"Required",0,0,0,0,0]
[7.5,0,0,0,"Required",0,"Required","Required",0,0,0,0]
["7.6",0,0,0,0,0,0,0,0,"Required","Required",0]
[8,0,0,0,0,0,0,0,0,0,0,0]
[8.1,"Required","Required","Required","Required","Required",0,0,0,0,0,0]
[8.1999999999999993,0,0,0,0,0,"Required","Required",0,0,0,0]
[8.3000000000000007,0,0,0,0,0,"Required",0,0,0,0,0]
[8.4,"Required","Required","Required","Required","Required","Required","Required",0,0,0,0]
[8.5,"Required","Required","Required","Required",0,"Required","Required",0,0,0,0]
[8.6,"Required","Required","Required","Required","Required","Required","Required",0,0,0,0]

{"sheet":"Vendor Information Sheet","index":4,"n_rows":10,"n_cols":11,"rows_kept":10,"cut":false,"hidden":true,"merged":[[2,2,2,3],[3,2,3,3],[2,4,4,10]]}
[]
[]
[null,"Vendor Name",{"$f":"VendorResponse!C3","v":0},null,"Please create a new, clearly labeled tab for any scores or charts that are required for approvals. "]
[null,"Assessment Name",{"$f":"VendorResponse!C4","v":0}]
[]
[null,null,"Desired Approval","Grade(s) or Grade Band(s)","Content Aligned","Application Sufficient","Intended for specialized populations? If yes please specify","Program Approval","Tech Approval","Specific battery, form, or index","Notes or limitations on approval"]
[null,"Application #1",{"$f":"VendorResponse!C11","v":"None"},{"$f":"VendorResponse!C7","v":0},{"$f":"VendorResponse!C8","v":0},{"$f":"VendorResponse!C9","v":"No Issue Noted"}]
[null,"Application #2",{"$f":"VendorResponse!D11","v":"None"},{"$f":"VendorResponse!D7","v":0},{"$f":"VendorResponse!D8","v":0},{"$f":"VendorResponse!D9","v":"No Issue Noted"}]
[null,"Application #3",{"$f":"VendorResponse!E11","v":"None"},{"$f":"VendorResponse!E7","v":0},{"$f":"VendorResponse!E8","v":0},{"$f":"VendorResponse!E9","v":"No Issue Noted"}]
[null,"Application #4",{"$f":"VendorResponse!F11","v":"None"},{"$f":"VendorResponse!F7","v":0},{"$f":"VendorResponse!F8","v":0},{"$f":"VendorResponse!F9","v":"No Issue Noted"}]

{"sheet":"Print Version","index":5,"n_rows":90,"n_cols":12,"rows_kept":90,"cut":false,"hidden":true,"merged":[]}
["Element","Requirement","Alternative 3-8 Science","Alternative 3-8 ELA","Alternative 3-8 Math","Alternative High School","High Quality Student Data (HQSD)","Gifted: Test of Specific Academic Ability ","Gifted:  Test of Intelligence","Gifted:  Test of Creative Ability ","Gifted:  Checklist of Artistic Ability ","Gifted:  Checklist of Creative Behaviors"]
[1,{"$f":"VendorResponse!B12","v":"VENDOR CAPABILITY: Readers will evaluate general capacity of vendor to meet assessment needs of Ohio districts."},0,0,0,0,0,0,0,0,"A",0]
[1.1000000000000001,{"$f":"VendorResponse!B13","v":"The vendor describes sufficient services to reasonably support needs of LEAs (training and professional development as needed to administer assessment and interpret results, ongoing communication and support available during test administration)."},{"$f":"Requirements!B2","v":"Required"},{"$f":"Requirements!C2","v":"Required"},{"$f":"Requirements!D2","v":"Required"},{"$f":"Requirements!E2","v":"Required"},{"$f":"Requirements!F2","v":"Required"},{"$f":"Requirements!G2","v":"Required"},{"$f":"Requirements!H2","v":"Required"},{"$f":"Requirements!I2","v":"Required"},{"$f":"Requirements!J2","v":"Required"},{"$f":"Requirements!K2","v":"Required"}]
[1.2,{"$f":"VendorResponse!B14","v":"Requirement Eliminated"},{"$f":"Requirements!B3","v":0},{"$f":"Requirements!C3","v":0},{"$f":"Requirements!D3","v":0},{"$f":"Requirements!E3","v":0},{"$f":"Requirements!F3","v":0},{"$f":"Requirements!G3","v":0},{"$f":"Requirements!H3","v":0},{"$f":"Requirements!I3","v":0},{"$f":"Requirements!J3","v":0},{"$f":"Requirements!K3","v":0}]
[1.3,{"$f":"VendorResponse!B15","v":"Requirement Eliminated"},{"$f":"Requirements!B4","v":0},{"$f":"Requirements!C4","v":0},{"$f":"Requirements!D4","v":0},{"$f":"Requirements!E4","v":0},{"$f":"Requirements!F4","v":0},{"$f":"Requirements!G4","v":0},{"$f":"Requirements!H4","v":0},{"$f":"Requirements!I4","v":0},{"$f":"Requirements!J4","v":0},{"$f":"Requirements!K4","v":0}]
[1.4,{"$f":"VendorResponse!B16","v":"Requirement Eliminated"},{"$f":"Requirements!B5","v":0},{"$f":"Requirements!C5","v":0},{"$f":"Requirements!D5","v":0},{"$f":"Requirements!E5","v":0},{"$f":"Requirements!F5","v":0},{"$f":"Requirements!G5","v":0},{"$f":"Requirements!H5","v":0},{"$f":"Requirements!I5","v":0},{"$f":"Requirements!J5","v":0},{"$f":"Requirements!K5","v":0}]
["1.5",{"$f":"VendorResponse!B17","v":"Requirement Eliminated"},{"$f":"Requirements!B6","v":0},{"$f":"Requirements!C6","v":0},{"$f":"Requirements!D6","v":0},{"$f":"Requirements!E6","v":0},{"$f":"Requirements!F6","v":0},{"$f":"Requirements!G6","v":0},{"$f":"Requirements!H6","v":0},{"$f":"Requirements!I6","v":0},{"$f":"Requirements!J6","v":0},{"$f":"Requirements!K6","v":0}]
["1.6",{"$f":"VendorResponse!B18","v":"The vendor provides evidence of strict safeguards to protect the confidentiality of personally identifiable student data, as required by ORC 3301.0714 and FERPA OR vendor has no access to presonally identifiable student information. "},{"$f":"Requirements!B7","v":"Required"},{"$f":"Requirements!C7","v":"Required"},{"$f":"Requirements!D7","v":"Required"},{"$f":"Requirements!E7","v":"Required"},{"$f":"Requirements!F7","v":"Required"},{"$f":"Requirements!G7","v":"Required"},{"$f":"Requirements!H7","v":"Required"},{"$f":"Requirements!I7","v":"Required"},{"$f":"Requirements!J7","v":"Required"},{"$f":"Requirements!K7","v":"Required"}]
[2,{"$f":"VendorResponse!B19","v":"VENDOR EFFECTIVENESS: Readers will evaluate vendor capacity to respond to school/district needs and support them in use of the assessment."},{"$f":"Requirements!B8","v":0},{"$f":"Requirements!C8","v":0},{"$f":"Requirements!D8","v":0},{"$f":"Requirements!E8","v":0},{"$f":"Requirements!F8","v":0},{"$f":"Requirements!G8","v":0},{"$f":"Requirements!H8","v":0},{"$f":"Requirements!I8","v":0},{"$f":"Requirements!J8","v":0},{"$f":"Requirements!K8","v":0}]
[2.1,{"$f":"VendorResponse!B20","v":"The vendor describes any accessibility features or accommodations included and support for their use to meet the unique needs of students having disabilities or language barriers."},{"$f":"Requirements!B9","v":"Required"},{"$f":"Requirements!C9","v":"Required"},{"$f":"Requirements!D9","v":"Required"},{"$f":"Requirements!E9","v":"Required"},{"$f":"Requirements!F9","v":"Required"},{"$f":"Requirements!G9","v":"Required"},{"$f":"Requirements!H9","v":"Required"},{"$f":"Requirements!I9","v":"Required"},{"$f":"Requirements!J9","v":0},{"$f":"Requirements!K9","v":0}]
[2.2000000000000002,{"$f":"VendorResponse!B21","v":"Requirement Eliminated"},{"$f":"Requirements!B10","v":0},{"$f":"Requirements!C10","v":0},{"$f":"Requirements!D10","v":0},{"$f":"Requirements!E10","v":0},{"$f":"Requirements!F10","v":0},{"$f":"Requirements!G10","v":0},{"$f":"Requirements!H10","v":0},{"$f":"Requirements!I10","v":0},{"$f":"Requirements!J10","v":0},{"$f":"Requirements!K10","v":0}]
[3,{"$f":"VendorResponse!B22","v":"ADMINISTRATION, SCORING, AND REPORTING: Readers will consider both general indicators of adequacy and specific scoring and reporting needs for individual assessment uses."},{"$f":"Requirements!B11","v":0},{"$f":"Requirements!C11","v":0},{"$f":"Requirements!D11","v":0},{"$f":"Requirements!E11","v":0},{"$f":"Requirements!F11","v":0},{"$f":"Requirements!G11","v":0},{"$f":"Requirements!H11","v":0},{"$f":"Requirements!I11","v":0},{"$f":"Requirements!J11","v":0},{"$f":"Requirements!K11","v":0}]
[3.1,{"$f":"VendorResponse!B23","v":"The vendor adequately describes the assessment administration protocol. The vendor's administration protocol must allow a test administrator unfamiliar with the particular assessment to be able to understand and administer the assessment in an appropriate and standardized manner."},{"$f":"Requirements!B12","v":"Required"},{"$f":"Requirements!C12","v":"Required"},{"$f":"Requirements!D12","v":"Required"},{"$f":"Requirements!E12","v":"Required"},{"$f":"Requirements!F12","v":"Required"},{"$f":"Requirements!G12","v":"Required"},{"$f":"Requirements!H12","v":"Required"},{"$f":"Requirements!I12","v":"Required"},{"$f":"Requirements!J12","v":"Required"},{"$f":"Requirements!K12","v":"Required"}]
[3.2,{"$f":"VendorResponse!B24","v":"The vendor provides a description of administrator training needs and adequately describes how any necessary administrator training will be provided."},{"$f":"Requirements!B13","v":"Required"},{"$f":"Requirements!C13","v":"Required"},{"$f":"Requirements!D13","v":"Required"},{"$f":"Requirements!E13","v":"Required"},{"$f":"Requirements!F13","v":"Required"},{"$f":"Requirements!G13","v":"Required"},{"$f":"Requirements!H13","v":"Required"},{"$f":"Requirements!I13","v":"Required"},{"$f":"Requirements!J13","v":"Required"},{"$f":"Requirements!K13","v":"Required"}]
[3.3,{"$f":"VendorResponse!B25","v":"The vendor provides information regarding the point during the instructional year at which the assessment should be administered (e.g., a certain percentage of the way through the year or after specific concepts are covered) AND this aligns with needs/expectations for the specific approval being sought."},{"$f":"Requirements!B14","v":"Required"},{"$f":"Requirements!C14","v":"Required"},{"$f":"Requirements!D14","v":"Required"},{"$f":"Requirements!E14","v":"Required"},{"$f":"Requirements!F14","v":"Required"},{"$f":"Requirements!G14","v":"Required"},{"$f":"Requirements!H14","v":"Required"},{"$f":"Requirements!I14","v":"Required"},{"$f":"Requirements!J14","v":"Required"},{"$f":"Requirements!K14","v":"Required"}]
[3.4,{"$f":"VendorResponse!B26","v":"The vendor provides adequate information regarding the time allowed for a student to complete the assessment. If not timed, the expected time needed to complete by subgroups of students is provided."},{"$f":"Requirements!B15","v":"Required"},{"$f":"Requirements!C15","v":"Required"},{"$f":"Requirements!D15","v":"Required"},{"$f":"Requirements!E15","v":"Required"},{"$f":"Requirements!F15","v":"Required"},{"$f":"Requirements!G15","v":"Required"},{"$f":"Requirements!H15","v":"Required"},{"$f":"Requirements!I15","v":"Required"},{"$f":"Requirements!J15","v":"Required"},{"$f":"Requirements!K15","v":"Required"}]
[3.5,{"$f":"VendorResponse!B27","v":"The vendor provides details regarding student groups (grade or age, disabilities, English learners, etc.) for whom the assessment is appropriate. "},{"$f":"Requirements!B16","v":"Required"},{"$f":"Requirements!C16","v":"Required"},{"$f":"Requirements!D16","v":"Required"},{"$f":"Requirements!E16","v":"Required"},{"$f":"Requirements!F16","v":"Required"},{"$f":"Requirements!G16","v":"Required"},{"$f":"Requirements!H16","v":"Required"},{"$f":"Requirements!I16","v":"Required"},{"$f":"Requirements!J16","v":"Required"},{"$f":"Requirements!K16","v":"Required"}]
[3.6,{"$f":"VendorResponse!B28","v":"The vendor documents its commitment to timely scoring and reporting to meet specific deadlines for any approved uses OR attests that all scoring and reporting are to be carried out by school or district personnel. (Immediate scoring meets the requirements for this element.) "},{"$f":"Requirements!B17","v":"Required"},{"$f":"Requirements!C17","v":"Required"},{"$f":"Requirements!D17","v":"Required"},{"$f":"Requirements!E17","v":"Required"},{"$f":"Requirements!F17","v":"Required"},{"$f":"Requirements!G17","v":"Required"},{"$f":"Requirements!H17","v":"Required"},{"$f":"Requirements!I17","v":"Required"},{"$f":"Requirements!J17","v":"Required"},{"$f":"Requirements!K17","v":"Required"}]
[3.7,{"$f":"VendorResponse!B29","v":"The vendor adequately describes any technology requirements associated with each proposed assessment OR attests that there are NO technical requirements. "},{"$f":"Requirements!B18","v":"Required"},{"$f":"Requirements!C18","v":"Required"},{"$f":"Requirements!D18","v":"Required"},{"$f":"Requirements!E18","v":"Required"},{"$f":"Requirements!F18","v":"Required"},{"$f":"Requirements!G18","v":"Required"},{"$f":"Requirements!H18","v":"Required"},{"$f":"Requirements!I18","v":"Required"},{"$f":"Requirements!J18","v":"Required"},{"$f":"Requirements!K18","v":"Required"}]
["3.8",{"$f":"VendorResponse!B30","v":"The vendor provides recommendations on who should score the assessment as appropriate and relevant (e. g., vendor scored, locally scored, qualifications and/or training of scorers)."},{"$f":"Requirements!B19","v":"Required"},{"$f":"Requirements!C19","v":"Required"},{"$f":"Requirements!D19","v":"Required"},{"$f":"Requirements!E19","v":"Required"},{"$f":"Requirements!F19","v":"Required"},{"$f":"Requirements!G19","v":"Required"},{"$f":"Requirements!H19","v":"Required"},{"$f":"Requirements!I19","v":"Required"},{"$f":"Requirements!J19","v":"Required"},{"$f":"Requirements!K19","v":"Required"}]
[3.9,{"$f":"VendorResponse!B31","v":"The vendor provides evidence of adequate security measures that address assessment security, threat assessment and/or test/item exposure. This shall include the following:"},{"$f":"Requirements!B20","v":0},{"$f":"Requirements!C20","v":0},{"$f":"Requirements!D20","v":0},{"$f":"Requirements!E20","v":0},{"$f":"Requirements!F20","v":0},{"$f":"Requirements!G20","v":0},{"$f":"Requirements!H20","v":0},{"$f":"Requirements!I20","v":0},{"$f":"Requirements!J20","v":0},{"$f":"Requirements!K20","v":0}]
["3.9.a",{"$f":"VendorResponse!B32","v":"The vendor has provided evidence that resulting scores are equivalent across forms or computer-produced test versions, per the Testing Standards. "},{"$f":"Requirements!B21","v":"Required"},{"$f":"Requirements!C21","v":"Required"},{"$f":"Requirements!D21","v":"Required"},{"$f":"Requirements!E21","v":"Required"},{"$f":"Requirements!F21","v":"Required"},{"$f":"Requirements!G21","v":"Required"},{"$f":"Requirements!H21","v":"Required"},{"$f":"Requirements!I21","v":"Required"},{"$f":"Requirements!J21","v":0},{"$f":"Requirements!K21","v":0}]
["3.9.b",{"$f":"VendorResponse!B33","v":"The vendor demonstrates the integrity of tests and test items is supported through practices as appropriate to the instrument and its purposes, e.g., multiple paper forms where multiple administrations are indicated; security measures to prevent inappropriate access to forms/items; sufficient item bank minimizes exposure of items for computer-adaptive testing."},{"$f":"Requirements!B22","v":"Required"},{"$f":"Requirements!C22","v":"Required"},{"$f":"Requirements!D22","v":"Required"},{"$f":"Requirements!E22","v":"Required"},{"$f":"Requirements!F22","v":"Required"},{"$f":"Requirements!G22","v":"Required"},{"$f":"Requirements!H22","v":"Required"},{"$f":"Requirements!I22","v":"Required"},{"$f":"Requirements!J22","v":0},{"$f":"Requirements!K22","v":0}]
["3.10",{"$f":"VendorResponse!B34","v":"Requirement Eliminated"},{"$f":"Requirements!B23","v":0},{"$f":"Requirements!C23","v":0},{"$f":"Requirements!D23","v":0},{"$f":"Requirements!E23","v":0},{"$f":"Requirements!F23","v":0},{"$f":"Requirements!G23","v":0},{"$f":"Requirements!H23","v":0},{"$f":"Requirements!I23","v":0},{"$f":"Requirements!J23","v":0},{"$f":"Requirements!K23","v":0}]
[3.11,{"$f":"VendorResponse!B35","v":"Requirement Eliminated"},{"$f":"Requirements!B24","v":0},{"$f":"Requirements!C24","v":0},{"$f":"Requirements!D24","v":0},{"$f":"Requirements!E24","v":0},{"$f":"Requirements!F24","v":0},{"$f":"Requirements!G24","v":0},{"$f":"Requirements!H24","v":0},{"$f":"Requirements!I24","v":0},{"$f":"Requirements!J24","v":0},{"$f":"Requirements!K24","v":0}]
[3.12,{"$f":"VendorResponse!B36","v":"The vendor shows how scoring processes and inferences match specific assessment needs with respect to the following requirements:"},{"$f":"Requirements!B25","v":0},{"$f":"Requirements!C25","v":0},{"$f":"Requirements!D25","v":0},{"$f":"Requirements!E25","v":0},{"$f":"Requirements!F25","v":0},{"$f":"Requirements!G25","v":0},{"$f":"Requirements!H25","v":0},{"$f":"Requirements!I25","v":0},{"$f":"Requirements!J25","v":0},{"$f":"Requirements!K25","v":0}]
["3.12.a",{"$f":"VendorResponse!B37","v":"Requirement Eliminated"},{"$f":"Requirements!B26","v":0},{"$f":"Requirements!C26","v":0},{"$f":"Requirements!D26","v":0},{"$f":"Requirements!E26","v":0},{"$f":"Requirements!F26","v":0},{"$f":"Requirements!G26","v":0},{"$f":"Requirements!H26","v":0},{"$f":"Requirements!I26","v":0},{"$f":"Requirements!J26","v":0},{"$f":"Requirements!K26","v":0}]
["3.12.b",{"$f":"VendorResponse!B38","v":"Requirement Eliminated"},{"$f":"Requirements!B27","v":0},{"$f":"Requirements!C27","v":0},{"$f":"Requirements!D27","v":0},{"$f":"Requirements!E27","v":0},{"$f":"Requirements!F27","v":0},{"$f":"Requirements!G27","v":0},{"$f":"Requirements!H27","v":0},{"$f":"Requirements!I27","v":0},{"$f":"Requirements!J27","v":0},{"$f":"Requirements!K27","v":0}]
["3.12.c",{"$f":"VendorResponse!B39","v":"Requirement Eliminated"},{"$f":"Requirements!B28","v":0},{"$f":"Requirements!C28","v":0},{"$f":"Requirements!D28","v":0},{"$f":"Requirements!E28","v":0},{"$f":"Requirements!F28","v":0},{"$f":"Requirements!G28","v":0},{"$f":"Requirements!H28","v":0},{"$f":"Requirements!I28","v":0},{"$f":"Requirements!J28","v":0},{"$f":"Requirements!K28","v":0}]
["3.12.d",{"$f":"VendorResponse!B40","v":"Requirement Eliminated"},{"$f":"Requirements!B29","v":0},{"$f":"Requirements!C29","v":0},{"$f":"Requirements!D29","v":0},{"$f":"Requirements!E29","v":0},{"$f":"Requirements!F29","v":0},{"$f":"Requirements!G29","v":0},{"$f":"Requirements!H29","v":0},{"$f":"Requirements!I29","v":0},{"$f":"Requirements!J29","v":0},{"$f":"Requirements!K29","v":0}]
["3.12.e",{"$f":"VendorResponse!B41","v":"Requirement Eliminated"},{"$f":"Requirements!B30","v":0},{"$f":"Requirements!C30","v":0},{"$f":"Requirements!D30","v":0},{"$f":"Requirements!E30","v":0},{"$f":"Requirements!F30","v":0},{"$f":"Requirements!G30","v":0},{"$f":"Requirements!H30","v":0},{"$f":"Requirements!I30","v":0},{"$f":"Requirements!J30","v":0},{"$f":"Requirements!K30","v":0}]
["3.12.f",{"$f":"VendorResponse!B42","v":"Requirement Eliminated"},{"$f":"Requirements!B31","v":0},{"$f":"Requirements!C31","v":0},{"$f":"Requirements!D31","v":0},{"$f":"Requirements!E31","v":0},{"$f":"Requirements!F31","v":0},{"$f":"Requirements!G31","v":0},{"$f":"Requirements!H31","v":0},{"$f":"Requirements!I31","v":0},{"$f":"Requirements!J31","v":0},{"$f":"Requirements!K31","v":0}]
["3.12.g",{"$f":"VendorResponse!B43","v":"Requirement Eliminated"},{"$f":"Requirements!B32","v":0},{"$f":"Requirements!C32","v":0},{"$f":"Requirements!D32","v":0},{"$f":"Requirements!E32","v":0},{"$f":"Requirements!F32","v":0},{"$f":"Requirements!G32","v":0},{"$f":"Requirements!H32","v":0},{"$f":"Requirements!I32","v":0},{"$f":"Requirements!J32","v":0},{"$f":"Requirements!K32","v":0}]
["3.12.h",{"$f":"VendorResponse!B44","v":"Requirement Eliminated"},{"$f":"Requirements!B33","v":0},{"$f":"Requirements!C33","v":0},{"$f":"Requirements!D33","v":0},{"$f":"Requirements!E33","v":0},{"$f":"Requirements!F33","v":0},{"$f":"Requirements!G33","v":0},{"$f":"Requirements!H33","v":0},{"$f":"Requirements!I33","v":0},{"$f":"Requirements!J33","v":0},{"$f":"Requirements!K33","v":0}]
["3.12.i",{"$f":"VendorResponse!B45","v":"Requirement Eliminated"},{"$f":"Requirements!B34","v":0},{"$f":"Requirements!C34","v":0},{"$f":"Requirements!D34","v":0},{"$f":"Requirements!E34","v":0},{"$f":"Requirements!F34","v":0},{"$f":"Requirements!G34","v":0},{"$f":"Requirements!H34","v":0},{"$f":"Requirements!I34","v":0},{"$f":"Requirements!J34","v":0},{"$f":"Requirements!K34","v":0}]
["3.12.j",{"$f":"VendorResponse!B46","v":"Requirement Eliminated"},{"$f":"Requirements!B35","v":0},{"$f":"Requirements!C35","v":0},{"$f":"Requirements!D35","v":0},{"$f":"Requirements!E35","v":0},{"$f":"Requirements!F35","v":0},{"$f":"Requirements!G35","v":0},{"$f":"Requirements!H35","v":0},{"$f":"Requirements!I35","v":0},{"$f":"Requirements!J35","v":0},{"$f":"Requirements!K35","v":0}]
["3.12.k",{"$f":"VendorResponse!B47","v":"Vendor has provided the standard deviation, the mean, and the standard error of measure. Please enter SEM info in SEMinfo sheet. "},{"$f":"Requirements!B36","v":0},{"$f":"Requirements!C36","v":0},{"$f":"Requirements!D36","v":0},{"$f":"Requirements!E36","v":0},{"$f":"Requirements!F36","v":0},{"$f":"Requirements!G36","v":0},{"$f":"Requirements!H36","v":"Required"},{"$f":"Requirements!I36","v":0},{"$f":"Requirements!J36","v":0},{"$f":"Requirements!K36","v":0}]
["3.12.l",{"$f":"VendorResponse!B48","v":"Reporting must allow districts to determine if a student meets or exceeds the 95th percentile or obtains an approved above grade level score."},{"$f":"Requirements!B37","v":0},{"$f":"Requirements!C37","v":0},{"$f":"Requirements!D37","v":0},{"$f":"Requirements!E37","v":0},{"$f":"Requirements!F37","v":0},{"$f":"Requirements!G37","v":"Required"},{"$f":"Requirements!H37","v":0},{"$f":"Requirements!I37","v":0},{"$f":"Requirements!J37","v":0},{"$f":"Requirements!K37","v":0}]
["3.12.m",{"$f":"VendorResponse!B49","v":"Reporting must allow districts to determine if a student demonstrates a sufficient score as specified by the Department indicative of gifted ability in creative thinking."},{"$f":"Requirements!B38","v":0},{"$f":"Requirements!C38","v":0},{"$f":"Requirements!D38","v":0},{"$f":"Requirements!E38","v":0},{"$f":"Requirements!F38","v":0},{"$f":"Requirements!G38","v":0},{"$f":"Requirements!H38","v":0},{"$f":"Requirements!I38","v":"Required"},{"$f":"Requirements!J38","v":0},{"$f":"Requirements!K38","v":0}]
["3.12.n",{"$f":"VendorResponse!B50","v":"Results in determination by a trained individual that student behaviors are indicative (or not) of creative or artistic giftedness. "},{"$f":"Requirements!B39","v":0},{"$f":"Requirements!C39","v":0},{"$f":"Requirements!D39","v":0},{"$f":"Requirements!E39","v":0},{"$f":"Requirements!F39","v":0},{"$f":"Requirements!G39","v":0},{"$f":"Requirements!H39","v":0},{"$f":"Requirements!I39","v":0},{"$f":"Requirements!J39","v":"Required"},{"$f":"Requirements!K39","v":"Required"}]
["3.12.o",{"$f":"VendorResponse!B51","v":"Requirement Eliminated"},{"$f":"Requirements!B40","v":0},{"$f":"Requirements!C40","v":0},{"$f":"Requirements!D40","v":0},{"$f":"Requirements!E40","v":0},{"$f":"Requirements!F40","v":0},{"$f":"Requirements!G40","v":0},{"$f":"Requirements!H40","v":0},{"$f":"Requirements!I40","v":0},{"$f":"Requirements!J40","v":0},{"$f":"Requirements!K40","v":0}]
[4,{"$f":"VendorResponse!B52","v":"BLUEPRINTS AND ALIGNMENT: Tests of student knowledge have a variety of alignment requirements. Readers will look for evidence of appropriate alignment to Ohio Learning Standards or other defined bodies of knowledge as appropriate to the specific use."},{"$f":"Requirements!B41","v":0},{"$f":"Requirements!C41","v":0},{"$f":"Requirements!D41","v":0},{"$f":"Requirements!E41","v":0},{"$f":"Requirements!F41","v":0},{"$f":"Requirements!G41","v":0},{"$f":"Requirements!H41","v":0},{"$f":"Requirements!I41","v":0},{"$f":"Requirements!J41","v":0},{"$f":"Requirements!K41","v":0}]
[4.0999999999999996,{"$f":"VendorResponse!B53","v":"The vendor provides a blueprint, item selection method, or meaningful description of test/form delivery or construction adequately describing the item distribution by content and item type, complexity, number of items, scoring of items, and any tools required/allowed for use by students during test administration. "},{"$f":"Requirements!B42","v":"Required"},{"$f":"Requirements!C42","v":"Required"},{"$f":"Requirements!D42","v":"Required"},{"$f":"Requirements!E42","v":"Required"},{"$f":"Requirements!F42","v":"Required"},{"$f":"Requirements!G42","v":"Required"},{"$f":"Requirements!H42","v":0},{"$f":"Requirements!I42","v":0},{"$f":"Requirements!J42","v":0},{"$f":"Requirements!K42","v":0}]
[4.2,{"$f":"VendorResponse!B54","v":"The vendor provides a description of the range and depth of knowledge (e.g., state or national standards, curricular framework) to which alignment is referenced. See Depth of Knowledge defined in secion 1.5 of the RFQ document. "},{"$f":"Requirements!B43","v":"Required"},{"$f":"Requirements!C43","v":"Required"},{"$f":"Requirements!D43","v":"Required"},{"$f":"Requirements!E43","v":"Required"},{"$f":"Requirements!F43","v":"Required"},{"$f":"Requirements!G43","v":"Required"},{"$f":"Requirements!H43","v":0},{"$f":"Requirements!I43","v":0},{"$f":"Requirements!J43","v":0},{"$f":"Requirements!K43","v":0}]
["4.2.a",{"$f":"VendorResponse!B55","v":"The instrument includes a sufficient depth and/or range of knowledge to determine advanced levels of achievement  or achievement beyond grade level. "},{"$f":"Requirements!B44","v":0},{"$f":"Requirements!C44","v":0},{"$f":"Requirements!D44","v":0},{"$f":"Requirements!E44","v":0},{"$f":"Requirements!F44","v":0},{"$f":"Requirements!G44","v":"Required"},{"$f":"Requirements!H44","v":0},{"$f":"Requirements!I44","v":0},{"$f":"Requirements!J44","v":0},{"$f":"Requirements!K44","v":0}]
[4.3,{"$f":"VendorResponse!B56","v":"The vendor provides evidence of an alignment study that meets industry-standards and/or is completed by a qualified and independent third party."},{"$f":"Requirements!B45","v":"Required"},{"$f":"Requirements!C45","v":"Required"},{"$f":"Requirements!D45","v":"Required"},{"$f":"Requirements!E45","v":"Required"},{"$f":"Requirements!F45","v":"Required"},{"$f":"Requirements!G45","v":0},{"$f":"Requirements!H45","v":0},{"$f":"Requirements!I45","v":0},{"$f":"Requirements!J45","v":0},{"$f":"Requirements!K45","v":0}]
[4.4000000000000004,{"$f":"VendorResponse!B57","v":"The alignment study provided describes a rigorous methodology for determining alignment."},{"$f":"Requirements!B46","v":"Required"},{"$f":"Requirements!C46","v":"Required"},{"$f":"Requirements!D46","v":"Required"},{"$f":"Requirements!E46","v":"Required"},{"$f":"Requirements!F46","v":"Required"},{"$f":"Requirements!G46","v":0},{"$f":"Requirements!H46","v":0},{"$f":"Requirements!I46","v":0},{"$f":"Requirements!J46","v":0},{"$f":"Requirements!K46","v":0}]
[4.5,{"$f":"VendorResponse!B58","v":"The vendor demonstrates that the assessment alignment meets the requirements of the approval being sought as to content and grade level as below:"},{"$f":"Requirements!B47","v":0},{"$f":"Requirements!C47","v":0},{"$f":"Requirements!D47","v":0},{"$f":"Requirements!E47","v":0},{"$f":"Requirements!F47","v":0},{"$f":"Requirements!G47","v":0},{"$f":"Requirements!H47","v":0},{"$f":"Requirements!I47","v":0},{"$f":"Requirements!J47","v":0},{"$f":"Requirements!K47","v":0}]
["4.5.a",{"$f":"VendorResponse!B59","v":"Requirement Eliminated"},{"$f":"Requirements!B48","v":0},{"$f":"Requirements!C48","v":0},{"$f":"Requirements!D48","v":0},{"$f":"Requirements!E48","v":0},{"$f":"Requirements!F48","v":0},{"$f":"Requirements!G48","v":0},{"$f":"Requirements!H48","v":0},{"$f":"Requirements!I48","v":0},{"$f":"Requirements!J48","v":0},{"$f":"Requirements!K48","v":0}]
["4.5.b",{"$f":"VendorResponse!B60","v":"Blueprint, item selection method, or other meaningful descsription demonstrates that content aligns with existing Ohio tests."},{"$f":"Requirements!B49","v":"Required"},{"$f":"Requirements!C49","v":"Required"},{"$f":"Requirements!D49","v":"Required"},{"$f":"Requirements!E49","v":0},{"$f":"Requirements!F49","v":0},{"$f":"Requirements!G49","v":0},{"$f":"Requirements!H49","v":0},{"$f":"Requirements!I49","v":0},{"$f":"Requirements!J49","v":0},{"$f":"Requirements!K49","v":0}]
["4.5.c",{"$f":"VendorResponse!B61","v":"Blueprint, item selection method, or other meaningful description demonstrates that content aligns with Ohio Learning Standards or other nationally recognized content standards. "},{"$f":"Requirements!B50","v":0},{"$f":"Requirements!C50","v":0},{"$f":"Requirements!D50","v":0},{"$f":"Requirements!E50","v":"Required"},{"$f":"Requirements!F50","v":"Required"},{"$f":"Requirements!G50","v":0},{"$f":"Requirements!H50","v":0},{"$f":"Requirements!I50","v":0},{"$f":"Requirements!J50","v":0},{"$f":"Requirements!K50","v":0}]
["4.5.d",{"$f":"VendorResponse!B62","v":"Blueprint, item selection method, or other meaningful description demonstrates that content aligns with applicable Ohio Learning Standards.  A minimum alignment of 50% is required for the Alt 3-8 ELA and Alt 3-8 Math assessments. A minimum alignment of 80% is required for the Alt 3-8 Science assessments with inclusion of all domains.\nNote: Alt. 3-8 Science may align to NGSS"},{"$f":"Requirements!B51","v":"Required"},{"$f":"Requirements!C51","v":"Required"},{"$f":"Requirements!D51","v":"Required"},{"$f":"Requirements!E51","v":0},{"$f":"Requirements!F51","v":0},{"$f":"Requirements!G51","v":0},{"$f":"Requirements!H51","v":0},{"$f":"Requirements!I51","v":0},{"$f":"Requirements!J51","v":0},{"$f":"Requirements!K51","v":0}]
["4.5.e",{"$f":"VendorResponse!B63","v":"Based on the blueprint, item selection method, or other meanignful description, assessment shows similar cognitive measures as the Ohio State Tests."},{"$f":"Requirements!B52","v":"Required"},{"$f":"Requirements!C52","v":"Required"},{"$f":"Requirements!D52","v":"Required"},{"$f":"Requirements!E52","v":0},{"$f":"Requirements!F52","v":0},{"$f":"Requirements!G52","v":0},{"$f":"Requirements!H52","v":0},{"$f":"Requirements!I52","v":0},{"$f":"Requirements!J52","v":0},{"$f":"Requirements!K52","v":0}]
["4.5.f",{"$f":"VendorResponse!B64","v":"Blueprint, item selection method, or other meaningful description contains a detailed description of standards assessed, including entire domain."},{"$f":"Requirements!B53","v":"Required"},{"$f":"Requirements!C53","v":"Required"},{"$f":"Requirements!D53","v":"Required"},{"$f":"Requirements!E53","v":0},{"$f":"Requirements!F53","v":0},{"$f":"Requirements!G53","v":0},{"$f":"Requirements!H53","v":0},{"$f":"Requirements!I53","v":0},{"$f":"Requirements!J53","v":0},{"$f":"Requirements!K53","v":0}]
["4.5.g",{"$f":"VendorResponse!B65","v":"Requirement Eliminated"},{"$f":"Requirements!B54","v":0},{"$f":"Requirements!C54","v":0},{"$f":"Requirements!D54","v":0},{"$f":"Requirements!E54","v":0},{"$f":"Requirements!F54","v":0},{"$f":"Requirements!G54","v":0},{"$f":"Requirements!H54","v":0},{"$f":"Requirements!I54","v":0},{"$f":"Requirements!J54","v":0},{"$f":"Requirements!K54","v":0}]
["4.5.h",{"$f":"VendorResponse!B66","v":"Requirement Eliminated"},{"$f":"Requirements!B55","v":0},{"$f":"Requirements!C55","v":0},{"$f":"Requirements!D55","v":0},{"$f":"Requirements!E55","v":0},{"$f":"Requirements!F55","v":0},{"$f":"Requirements!G55","v":0},{"$f":"Requirements!H55","v":0},{"$f":"Requirements!I55","v":0},{"$f":"Requirements!J55","v":0},{"$f":"Requirements!K55","v":0}]
["4.5.i",{"$f":"VendorResponse!B67","v":"Requirement Eliminated"},{"$f":"Requirements!B56","v":0},{"$f":"Requirements!C56","v":0},{"$f":"Requirements!D56","v":0},{"$f":"Requirements!E56","v":0},{"$f":"Requirements!F56","v":0},{"$f":"Requirements!G56","v":0},{"$f":"Requirements!H56","v":0},{"$f":"Requirements!I56","v":0},{"$f":"Requirements!J56","v":0},{"$f":"Requirements!K56","v":0}]
[5,{"$f":"VendorResponse!B68","v":"LINKING: Readers will look for evidence that the score (or level such as proficiency, etc.) on an assessment is equivalent to the scores of the Ohio assessment for which it may substitute."},{"$f":"Requirements!B57","v":0},{"$f":"Requirements!C57","v":0},{"$f":"Requirements!D57","v":0},{"$f":"Requirements!E57","v":0},{"$f":"Requirements!F57","v":0},{"$f":"Requirements!G57","v":0},{"$f":"Requirements!H57","v":0},{"$f":"Requirements!I57","v":0},{"$f":"Requirements!J57","v":0},{"$f":"Requirements!K57","v":0}]
[5.0999999999999996,{"$f":"VendorResponse!B69","v":"The vendor provides a linking study that meets industry standards and/or has been conducted by an independent third party. \nNote: Alt Reading and Alt 3-8 ELA at grade 3 MUST meet this requirement using a linking study from an independent third party. An internal study reviewed by an independent third party MAY NOT be used. "},{"$f":"Requirements!B58","v":"Required"},{"$f":"Requirements!C58","v":"Required"},{"$f":"Requirements!D58","v":"Required"},{"$f":"Requirements!E58","v":"Required"},{"$f":"Requirements!F58","v":0},{"$f":"Requirements!G58","v":0},{"$f":"Requirements!H58","v":0},{"$f":"Requirements!I58","v":0},{"$f":"Requirements!J58","v":0},{"$f":"Requirements!K58","v":0}]
[5.2,{"$f":"VendorResponse!B70","v":"The vendor provides sufficient information (e.g., curriculum vitae of key personnel) to establish the expert's and/or third-party's qualifications to conduct linking studies."},{"$f":"Requirements!B59","v":"Required"},{"$f":"Requirements!C59","v":"Required"},{"$f":"Requirements!D59","v":"Required"},{"$f":"Requirements!E59","v":"Required"},{"$f":"Requirements!F59","v":0},{"$f":"Requirements!G59","v":0},{"$f":"Requirements!H59","v":0},{"$f":"Requirements!I59","v":0},{"$f":"Requirements!J59","v":0},{"$f":"Requirements!K59","v":0}]
[5.3,{"$f":"VendorResponse!B71","v":"The vendor provides evidence as appropriate (i.e., a signed statement) that the third-party organization is independent of the vendor."},{"$f":"Requirements!B60","v":"Required"},{"$f":"Requirements!C60","v":"Required"},{"$f":"Requirements!D60","v":"Required"},{"$f":"Requirements!E60","v":"Required"},{"$f":"Requirements!F60","v":0},{"$f":"Requirements!G60","v":0},{"$f":"Requirements!H60","v":0},{"$f":"Requirements!I60","v":0},{"$f":"Requirements!J60","v":0},{"$f":"Requirements!K60","v":0}]
[5.4,{"$f":"VendorResponse!B72","v":"The linking study demonstrates scoring equivalence between proposed assessment and existing Ohio tests."},{"$f":"Requirements!B61","v":"Required"},{"$f":"Requirements!C61","v":"Required"},{"$f":"Requirements!D61","v":"Required"},{"$f":"Requirements!E61","v":"Required"},{"$f":"Requirements!F61","v":0},{"$f":"Requirements!G61","v":0},{"$f":"Requirements!H61","v":0},{"$f":"Requirements!I61","v":0},{"$f":"Requirements!J61","v":0},{"$f":"Requirements!K61","v":0}]
[5.5,{"$f":"VendorResponse!B73","v":"Provision of tables showing concordance between the vendor’s scale scores and Ohio’s scale scores at the defined points for Limited, Basic, Proficient, Accomplished, Advanced performance levels, and Competency where required.  A complete point to point concordance table of entire scale scores is preferred."},{"$f":"Requirements!B62","v":"Required"},{"$f":"Requirements!C62","v":"Required"},{"$f":"Requirements!D62","v":"Required"},{"$f":"Requirements!E62","v":"Required"},{"$f":"Requirements!F62","v":0},{"$f":"Requirements!G62","v":0},{"$f":"Requirements!H62","v":0},{"$f":"Requirements!I62","v":0},{"$f":"Requirements!J62","v":0},{"$f":"Requirements!K62","v":0}]
[5.6,{"$f":"VendorResponse!B74","v":"The linking study includes a concordance table covering the entire range (16-86) of the reading subscore of the Ohio Grade 3 ELA test."},{"$f":"Requirements!B63","v":0},{"$f":"Requirements!C63","v":"Required"},{"$f":"Requirements!D63","v":0},{"$f":"Requirements!E63","v":0},{"$f":"Requirements!F63","v":0},{"$f":"Requirements!G63","v":0},{"$f":"Requirements!H63","v":0},{"$f":"Requirements!I63","v":0},{"$f":"Requirements!J63","v":0},{"$f":"Requirements!K63","v":0}]
[5.7,{"$f":"VendorResponse!B75","v":"The vendor provides evidence that the sample used in the linking study consists of a minimum of five Ohio school districts representing at least three typologies. See Typology of Ohio School Districts defined in section 1.5 of the RFQ document."},{"$f":"Requirements!B64","v":"Required"},{"$f":"Requirements!C64","v":"Required"},{"$f":"Requirements!D64","v":"Required"},{"$f":"Requirements!E64","v":0},{"$f":"Requirements!F64","v":0},{"$f":"Requirements!G64","v":0},{"$f":"Requirements!H64","v":0},{"$f":"Requirements!I64","v":0},{"$f":"Requirements!J64","v":0},{"$f":"Requirements!K64","v":0}]
[5.8,{"$f":"VendorResponse!B76","v":"The vendor provides the following information about sample used for linking: the number and size (number of students) of districts and schools in the sample and the names or typology of the districts. Typology of Ohio School Districts"},{"$f":"Requirements!B65","v":"Required"},{"$f":"Requirements!C65","v":"Required"},{"$f":"Requirements!D65","v":"Required"},{"$f":"Requirements!E65","v":0},{"$f":"Requirements!F65","v":0},{"$f":"Requirements!G65","v":0},{"$f":"Requirements!H65","v":0},{"$f":"Requirements!I65","v":0},{"$f":"Requirements!J65","v":0},{"$f":"Requirements!K65","v":0}]
["5.9",{"$f":"VendorResponse!B77","v":"The linking study demonstrates a robust and representative sampling of students by gender, ethnicity, and economic disadvantage."},{"$f":"Requirements!B66","v":"Required"},{"$f":"Requirements!C66","v":"Required"},{"$f":"Requirements!D66","v":"Required"},{"$f":"Requirements!E66","v":0},{"$f":"Requirements!F66","v":0},{"$f":"Requirements!G66","v":0},{"$f":"Requirements!H66","v":0},{"$f":"Requirements!I66","v":0},{"$f":"Requirements!J66","v":0},{"$f":"Requirements!K66","v":0}]
["5.10",{"$f":"VendorResponse!B78","v":"Demographic data provided establishes that the sample used for linking fairly represents the composition of the student population of the state of Ohio as relates to school/district typology and demographic variables as outlined in 5.8 and 5.9."},{"$f":"Requirements!B67","v":"Required"},{"$f":"Requirements!C67","v":"Required"},{"$f":"Requirements!D67","v":"Required"},{"$f":"Requirements!E67","v":0},{"$f":"Requirements!F67","v":0},{"$f":"Requirements!G67","v":0},{"$f":"Requirements!H67","v":0},{"$f":"Requirements!I67","v":0},{"$f":"Requirements!J67","v":0},{"$f":"Requirements!K67","v":0}]
["5.11",{"$f":"VendorResponse!B79","v":"The linking study contains comparative scores for students taking both the proposed alternative test and the Ohio grade 3 ELA test within 60 calendar days."},{"$f":"Requirements!B68","v":0},{"$f":"Requirements!C68","v":"Required"},{"$f":"Requirements!D68","v":0},{"$f":"Requirements!E68","v":0},{"$f":"Requirements!F68","v":0},{"$f":"Requirements!G68","v":0},{"$f":"Requirements!H68","v":0},{"$f":"Requirements!I68","v":0},{"$f":"Requirements!J68","v":0},{"$f":"Requirements!K68","v":0}]
[6,{"$f":"VendorResponse!B80","v":"VALIDITY: Validity refers to the ability of the assessment to measure what it is intended to measure, relatively free from the impact of other influences."},{"$f":"Requirements!B69","v":0},{"$f":"Requirements!C69","v":0},{"$f":"Requirements!D69","v":0},{"$f":"Requirements!E69","v":0},{"$f":"Requirements!F69","v":0},{"$f":"Requirements!G69","v":0},{"$f":"Requirements!H69","v":0},{"$f":"Requirements!I69","v":0},{"$f":"Requirements!J69","v":0},{"$f":"Requirements!K69","v":0}]
[6.1,{"$f":"VendorResponse!B81","v":"The technical report or manual (or equivalent third-party documentation) provides validity evidence based on credible methodology to support inferences about student performance, including, but not limited to, evidence of content and construct validity as appropriate to the test and each specific proposed purpose."},{"$f":"Requirements!B70","v":"Required"},{"$f":"Requirements!C70","v":"Required"},{"$f":"Requirements!D70","v":"Required"},{"$f":"Requirements!E70","v":"Required"},{"$f":"Requirements!F70","v":"Required"},{"$f":"Requirements!G70","v":"Required"},{"$f":"Requirements!H70","v":"Required"},{"$f":"Requirements!I70","v":"Required"},{"$f":"Requirements!J70","v":"Required"},{"$f":"Requirements!K70","v":"Required"}]
[6.2,{"$f":"VendorResponse!B82","v":"The technical report or manual (or equivalent third-party documentation) provides validity evidence based on credible methodology to support inferences about student performance, including, but not limited to, concurrent or predictive validity as appropriate to the test and each specific proposed purpose, with a recommended interval of at least two months for predictive validity. Concurrent validity requires a minimum coefficient of 0.70; predictive validity requires a minimum coefficient of 0.50."},{"$f":"Requirements!B71","v":"Required"},{"$f":"Requirements!C71","v":"Required"},{"$f":"Requirements!D71","v":"Required"},{"$f":"Requirements!E71","v":"Required"},{"$f":"Requirements!F71","v":"Required"},{"$f":"Requirements!G71","v":"Required"},{"$f":"Requirements!H71","v":"Required"},{"$f":"Requirements!I71","v":0},{"$f":"Requirements!J71","v":0},{"$f":"Requirements!K71","v":0}]
[6.3,{"$f":"VendorResponse!B83","v":"Requirement Eliminated"},{"$f":"Requirements!B72","v":0},{"$f":"Requirements!C72","v":0},{"$f":"Requirements!D72","v":0},{"$f":"Requirements!E72","v":0},{"$f":"Requirements!F72","v":0},{"$f":"Requirements!G72","v":0},{"$f":"Requirements!H72","v":0},{"$f":"Requirements!I72","v":0},{"$f":"Requirements!J72","v":0},{"$f":"Requirements!K72","v":0}]
[6.4,{"$f":"VendorResponse!B84","v":"Requirement Eliminated"},{"$f":"Requirements!B73","v":0},{"$f":"Requirements!C73","v":0},{"$f":"Requirements!D73","v":0},{"$f":"Requirements!E73","v":0},{"$f":"Requirements!F73","v":0},{"$f":"Requirements!G73","v":0},{"$f":"Requirements!H73","v":0},{"$f":"Requirements!I73","v":0},{"$f":"Requirements!J73","v":0},{"$f":"Requirements!K73","v":0}]
["6.5",{"$f":"VendorResponse!B85","v":"Requirement Eliminated"},{"$f":"Requirements!B74","v":0},{"$f":"Requirements!C74","v":0},{"$f":"Requirements!D74","v":0},{"$f":"Requirements!E74","v":0},{"$f":"Requirements!F74","v":0},{"$f":"Requirements!G74","v":0},{"$f":"Requirements!H74","v":0},{"$f":"Requirements!I74","v":0},{"$f":"Requirements!J74","v":0},{"$f":"Requirements!K74","v":0}]
["6.6",{"$f":"VendorResponse!B86","v":"Requirement Eliminated"},{"$f":"Requirements!B75","v":0},{"$f":"Requirements!C75","v":0},{"$f":"Requirements!D75","v":0},{"$f":"Requirements!E75","v":0},{"$f":"Requirements!F75","v":0},{"$f":"Requirements!G75","v":0},{"$f":"Requirements!H75","v":0},{"$f":"Requirements!I75","v":0},{"$f":"Requirements!J75","v":0},{"$f":"Requirements!K75","v":0}]
[7,{"$f":"VendorResponse!B87","v":"NORMING: Norming provides a basis for percentile scoring as well as demonstrating the performance of the instrument across a nationally representative group of students."},{"$f":"Requirements!B76","v":0},{"$f":"Requirements!C76","v":0},{"$f":"Requirements!D76","v":0},{"$f":"Requirements!E76","v":0},{"$f":"Requirements!F76","v":0},{"$f":"Requirements!G76","v":0},{"$f":"Requirements!H76","v":0},{"$f":"Requirements!I76","v":0},{"$f":"Requirements!J76","v":0},{"$f":"Requirements!K76","v":0}]
[7.1,{"$f":"VendorResponse!B88","v":"Norming data are less than 10 years old."},{"$f":"Requirements!B77","v":0},{"$f":"Requirements!C77","v":0},{"$f":"Requirements!D77","v":0},{"$f":"Requirements!E77","v":"Required"},{"$f":"Requirements!F77","v":0},{"$f":"Requirements!G77","v":0},{"$f":"Requirements!H77","v":0},{"$f":"Requirements!I77","v":0},{"$f":"Requirements!J77","v":0},{"$f":"Requirements!K77","v":0}]
[7.2,{"$f":"VendorResponse!B89","v":"Norming sample adequately represents the student population of the nation. Vendor demonstrates representation by demographics including gender and income level (free/reduced price lunch eligibility or other proxy) at a minimum. "},{"$f":"Requirements!B78","v":0},{"$f":"Requirements!C78","v":0},{"$f":"Requirements!D78","v":0},{"$f":"Requirements!E78","v":"Required"},{"$f":"Requirements!F78","v":0},{"$f":"Requirements!G78","v":"Required"},{"$f":"Requirements!H78","v":"Required"},{"$f":"Requirements!I78","v":0},{"$f":"Requirements!J78","v":"Required"},{"$f":"Requirements!K78","v":"Required"}]
[7.3,{"$f":"VendorResponse!B90","v":"Sample is comprised of students from all regions of the nation without any states or regions disproportionately represented."},{"$f":"Requirements!B79","v":0},{"$f":"Requirements!C79","v":0},{"$f":"Requirements!D79","v":0},{"$f":"Requirements!E79","v":"Required"},{"$f":"Requirements!F79","v":0},{"$f":"Requirements!G79","v":"Required"},{"$f":"Requirements!H79","v":"Required"},{"$f":"Requirements!I79","v":0},{"$f":"Requirements!J79","v":"Required"},{"$f":"Requirements!K79","v":"Required"}]
[7.4,{"$f":"VendorResponse!B91","v":"The sample size is sufficiently large to produce stable norming results: more than 5,000 on average per grade/subject with no grade/subject less than 1,000, subect to good representation of student population nationally, per test for general achievement tests. Tests specifically designed for small, discrete populations (example: nonverbal students) may be judged on the sufficiency of a smaller appropriate sample. "},{"$f":"Requirements!B80","v":0},{"$f":"Requirements!C80","v":0},{"$f":"Requirements!D80","v":0},{"$f":"Requirements!E80","v":"Required"},{"$f":"Requirements!F80","v":0},{"$f":"Requirements!G80","v":"Required"},{"$f":"Requirements!H80","v":0},{"$f":"Requirements!I80","v":0},{"$f":"Requirements!J80","v":0},{"$f":"Requirements!K80","v":0}]
[7.5,{"$f":"VendorResponse!B92","v":"Data of the norming study should be from a limited timeframe so the results are considered comparable. A separate norm is necessary for each administration (such as fall, winter, spring, if applicable). "},{"$f":"Requirements!B81","v":0},{"$f":"Requirements!C81","v":0},{"$f":"Requirements!D81","v":0},{"$f":"Requirements!E81","v":"Required"},{"$f":"Requirements!F81","v":0},{"$f":"Requirements!G81","v":"Required"},{"$f":"Requirements!H81","v":"Required"},{"$f":"Requirements!I81","v":0},{"$f":"Requirements!J81","v":0},{"$f":"Requirements!K81","v":0}]
["7.6",{"$f":"VendorResponse!B93","v":"Vendor provides evidence of a reporting scale that has been standardized using commonly accepted methodology"},{"$f":"Requirements!B82","v":0},{"$f":"Requirements!C82","v":0},{"$f":"Requirements!D82","v":0},{"$f":"Requirements!E82","v":0},{"$f":"Requirements!F82","v":0},{"$f":"Requirements!G82","v":0},{"$f":"Requirements!H82","v":0},{"$f":"Requirements!I82","v":0},{"$f":"Requirements!J82","v":"Required"},{"$f":"Requirements!K82","v":"Required"}]
[8,{"$f":"VendorResponse!B94","v":"RELIABILITY: Reliability is a measure of the capacity of an assessment to arrive at similar results given similar conditions. Excellent evidence requires that reliability is met in 100% of all measures according to generally accepted professional standards. Adequate evidence, in which the requirement is substantially met (example: reliability demonstrated for a preponderance of grade/content combinations, or deficits at some grades falling within the margin of error) will be considered on a case-by-case basis. NOTE: As stated in Section 1.5 (Reservation of Rights), the Department reserves the right to \"grant full or limited approval of assessments (e.g., approving some but not all uses and/or some but not all grade levels or content areas).\""},{"$f":"Requirements!B83","v":0},{"$f":"Requirements!C83","v":0},{"$f":"Requirements!D83","v":0},{"$f":"Requirements!E83","v":0},{"$f":"Requirements!F83","v":0},{"$f":"Requirements!G83","v":0},{"$f":"Requirements!H83","v":0},{"$f":"Requirements!I83","v":0},{"$f":"Requirements!J83","v":0},{"$f":"Requirements!K83","v":0}]
[8.1,{"$f":"VendorResponse!B95","v":"The technical report or manual (or equivalent third-party documentation) provides credible estimates of reliability at least at the .80 level for individual grade levels, or .90 when calculated across a range of grade levels."},{"$f":"Requirements!B84","v":"Required"},{"$f":"Requirements!C84","v":"Required"},{"$f":"Requirements!D84","v":"Required"},{"$f":"Requirements!E84","v":"Required"},{"$f":"Requirements!F84","v":"Required"},{"$f":"Requirements!G84","v":0},{"$f":"Requirements!H84","v":0},{"$f":"Requirements!I84","v":0},{"$f":"Requirements!J84","v":0},{"$f":"Requirements!K84","v":0}]
[8.1999999999999993,{"$f":"VendorResponse!B96","v":"The technical report or manual (or equivalent third-party documentation) provides credible estimates of reliability at least at the .90 level. (Gifted assessments falling below .90 but above .80 may be approved for pre-screening only.)"},{"$f":"Requirements!B85","v":0},{"$f":"Requirements!C85","v":0},{"$f":"Requirements!D85","v":0},{"$f":"Requirements!E85","v":0},{"$f":"Requirements!F85","v":0},{"$f":"Requirements!G85","v":"Required"},{"$f":"Requirements!H85","v":"Required"},{"$f":"Requirements!I85","v":0},{"$f":"Requirements!J85","v":0},{"$f":"Requirements!K85","v":0}]
[8.3000000000000007,{"$f":"VendorResponse!B97","v":"The technical report or manual includes sound and credible reliability evidence to support multiple administrations (three or more within a school year) if applicable (test-retest reliability coefficient of .85). This does not apply to instruments once annually or others for which there is no on-demand usage. "},{"$f":"Requirements!B86","v":0},{"$f":"Requirements!C86","v":0},{"$f":"Requirements!D86","v":0},{"$f":"Requirements!E86","v":0},{"$f":"Requirements!F86","v":0},{"$f":"Requirements!G86","v":"Required"},{"$f":"Requirements!H86","v":0},{"$f":"Requirements!I86","v":0},{"$f":"Requirements!J86","v":0},{"$f":"Requirements!K86","v":0}]
[8.4,{"$f":"VendorResponse!B98","v":"The technical or manual report (or equivalent third-party documentation) provides evidence of sound methodology to determine that the assessment has items of varied difficulty that cover the expected ability distribution for the examinees of interest (e.g., sufficient item coverage at the tails of the distribution)."},{"$f":"Requirements!B87","v":"Required"},{"$f":"Requirements!C87","v":"Required"},{"$f":"Requirements!D87","v":"Required"},{"$f":"Requirements!E87","v":"Required"},{"$f":"Requirements!F87","v":"Required"},{"$f":"Requirements!G87","v":"Required"},{"$f":"Requirements!H87","v":"Required"},{"$f":"Requirements!I87","v":0},{"$f":"Requirements!J87","v":0},{"$f":"Requirements!K87","v":0}]
[8.5,{"$f":"VendorResponse!B99","v":"The technical report or manual (or equivalent third-party documentation) includes estimates of standard error of measurement overall and/or at the cut score with a sufficient and credible explanation of methodology."},{"$f":"Requirements!B88","v":"Required"},{"$f":"Requirements!C88","v":"Required"},{"$f":"Requirements!D88","v":"Required"},{"$f":"Requirements!E88","v":"Required"},{"$f":"Requirements!F88","v":0},{"$f":"Requirements!G88","v":"Required"},{"$f":"Requirements!H88","v":"Required"},{"$f":"Requirements!I88","v":0},{"$f":"Requirements!J88","v":0},{"$f":"Requirements!K88","v":0}]
[8.6,{"$f":"VendorResponse!B100","v":"The technical report or manual (or equivalent third-party documentation) provides sound and credible evidence that the assessment does not exhibit bias toward any major subgroups (e.g., through an analysis of differential item functioning and/or description of fairness and sensitivity review during development."},{"$f":"Requirements!B89","v":"Required"},{"$f":"Requirements!C89","v":"Required"},{"$f":"Requirements!D89","v":"Required"},{"$f":"Requirements!E89","v":"Required"},{"$f":"Requirements!F89","v":"Required"},{"$f":"Requirements!G89","v":"Required"},{"$f":"Requirements!H89","v":"Required"},{"$f":"Requirements!I89","v":0},{"$f":"Requirements!J89","v":0},{"$f":"Requirements!K89","v":0}]

{"sheet":"ApprovalDetails","index":6,"n_rows":97,"n_cols":22,"rows_kept":97,"cut":false,"hidden":true,"merged":[]}
["Requirement 6.5 Classification Accuracy",null,null,null,null,null,"Requirement 7.1 Norming Data Date",null,null,"Requirement 3.12.k  Standard Error of Measure and Standard Deviations",null,null,"Requirement 6.2 Validity",null,null,null,null,"Requirements 8.1, 8.2, & 8.3 Reliability"]
["Grade Level","AUC","Sensitivity","Specificity","Meets Requirement",null,"Year of Norms",null,null,"Standard Error of Measure",null,null,"Concurrent Validity",null,"Predicitive Validity",null,null,"Grade Level or Grouping","Reliability","TRT Reliability","PreScreen","ID"]
["K",null,null,null,null,null,null,null,null,"1 Standard Deviation",null,null,"Grade Level or Group","Coefficient","Grade Level or Group","Coefficient"]
[1,null,null,null,null,null,null,null,null,"2 Standard Deviations"]
[2,null,null,null,null,null,null,null,null,"Computation Info"]
[3]
[4]
[5]
[6]
[]
[]
[]
[]
[]
[]
[]
[]
[]
[]
[]
[]
[]
[]
[]
[]
[]
[]
[]
[]
[]
[]
[]
[]
[]
[]
[]
[]
[]
[]
[]
[]
[]
[]
[]
[]
[]
[]
[]
[]
[]
[]
[]
[]
[]
[]
[]
[]
[]
[]
[]
[]
[]
[]
[]
[]
[]
[]
[]
[]
[]
[]
[]
[]
[]
[]
[]
[]
[]
[]
[]
[]
[]
[]
[]
[]
[]
[]
[]
[]
[]
[]
[]
[]
[]
[]
[null,20,20,20,true]
[null,30,30,30,false]